fUSD/lending_fUSD_20250620
["ID","MTS","AMOUNT","RATE_DAILY","PERIOD"]
[366762409,1750436047948,150.09,0.00013699,2]
[366762412,1750436079083,153.53526613,0.0002,5]
[366762416,1750436200458,150.0,0.00023102,2]
[366762424,1750436611491,201.65,0.00022389,2]
[366762425,1750436711067,844.8313228,0.000154,2]
[366762440,1750436833706,6909.03839118,0.00015,2]
[366762441,1750436837221,1261.5337577,0.00015,2]
[366762442,1750436837245,13035.23046738,0.00015,2]
[366762448,1750436898450,9823.83015614,0.0001439,2]
[366762452,1750436923734,9740.99484664,0.000151,2]
[366762468,1750436931129,29442.80930807,0.000194,2]
[366762483,1750437011127,153.97,0.00013699,2]
[366762492,1750437031558,-202.0,0.00023552,2]
[366762494,1750437031569,-151.0,0.00023897,2]
[366762495,1750437031579,-168.0,0.00023897,2]
[366762496,1750437031590,-1200.0,0.00023999,2]
[366762497,1750437031600,-5210.20060159,0.00024,2]
[366762498,1750437031612,-2545.65831435,0.00024,2]
[366762499,1750437031622,-300.0,0.00024551,2]
[366762500,1750437031632,-883.34168565,0.00025001,2]
[366762501,1750437031649,-29.82831435,0.00025001,2]
[366762502,1750437031659,-876.57071331,0.00025001,2]
[366762503,1750437031672,-123.42928669,0.00025001,2]
[366762504,1750437031681,-187.78,0.00025044,2]
[366762505,1750437031691,-300.0,0.00025068,2]
[366762506,1750437031701,-165.57,0.00025069,2]
[366762507,1750437031711,-863.3230041,0.00025087,2]
[366762508,1750437031723,-2895.86350336,0.00025087,2]
[366762509,1750437031735,-10608.0,0.00025087,2]
[366762510,1750437031747,-550.63349254,0.00025087,2]
[366762511,1750437031757,-200.0,0.00025121,7]
[366762512,1750437031768,-216.2,0.00025145,120]
[366762513,1750437031778,-1500.0,0.0002524,2]
[366762514,1750437031788,-202.0,0.00025288,4]
[366762515,1750437031798,-1358.7261146,0.000253,12]
[366762516,1750437031809,-267.0,0.00025317,2]
[366762517,1750437031818,-1358.7261145,0.00025383,13]
[366762518,1750437031828,-3334.0,0.00025383,2]
[366762519,1750437031838,-946.0,0.00025383,2]
[366762520,1750437031848,-157.19,0.0002551,2]
[366762521,1750437031858,-157.19,0.00025523,2]
[366762522,1750437031867,-157.19,0.00025536,2]
[366762523,1750437031878,-207.4,0.00025537,2]
[366762524,1750437031888,-168.0,0.00025544,2]
[366762525,1750437031898,-157.19,0.00025548,2]
[366762526,1750437031907,-157.19,0.00025561,2]
[366762527,1750437031918,-157.19,0.00025574,2]
[366762528,1750437031927,-157.19,0.00025587,2]
[366762529,1750437031937,-200.0,0.00025589,2]
[366762530,1750437031948,-157.19,0.00025599,2]
[366762531,1750437031958,-157.19,0.00025612,2]
[366762532,1750437031967,-157.19,0.00025625,2]
[366762533,1750437031978,-157.19,0.00025638,2]
[366762534,1750437031988,-168.0,0.00025668,2]
[366762535,1750437031998,-500.0,0.00025689,2]
[366762536,1750437032009,-1500.0,0.0002569,120]
[366762538,1750437032019,-14944.07037651,0.00025747,2]
[366762540,1750437032029,-2055.88,0.00025748,2]
[366762542,1750437032039,-797.92,0.00025781,2]
[366762544,1750437032049,-461.86,0.00025781,2]
[366762546,1750437032059,-797.92,0.00025781,2]
[366762548,1750437032068,-461.86,0.00025781,2]
[366762551,1750437032079,-201.65,0.00025814,2]
[366762554,1750437032088,-797.92,0.00025841,2]
[366762557,1750437032098,-461.86,0.00025841,2]
[366762559,1750437032108,-193.24568903,0.00025866,14]
[366762562,1750437032133,-970.99304133,0.00025866,14]
[366762564,1750437032145,-194.48738414,0.00025866,14]
[366762566,1750437032155,-151.0,0.00025884,2]
[366762569,1750437032166,-72.88581553,0.00025884,2]
[366762571,1750437032178,-427.11418447,0.00025884,2]
[366762573,1750437032188,-159.77481553,0.00025884,2]
[366762575,1750437032200,-340.22518447,0.00025884,2]
[366762576,1750437032209,-500.0,0.00025884,2]
[366762577,1750437032219,-500.0,0.00025884,2]
[366762578,1750437032230,-151.0,0.00025884,2]
[366762579,1750437032242,-500.0,0.00025884,2]
[366762580,1750437032252,-500.0,0.00025884,2]
[366762581,1750437032262,-500.0,0.00025884,2]
[366762582,1750437032273,-500.0,0.00025884,2]
[366762583,1750437032283,-402.0911291,0.00025884,2]
[366762584,1750437032295,-97.9088709,0.00025884,2]
[366762585,1750437032305,-500.0,0.00025884,2]
[366762587,1750437032315,-500.0,0.00025884,2]
[366762589,1750437032325,-500.0,0.00025884,2]
[366762591,1750437032335,-500.0,0.00025884,2]
[366762593,1750437032345,-500.0,0.00025884,2]
[366762595,1750437032355,-151.0,0.00025884,2]
[366762598,1750437032368,-2074.25539818,0.000259,2]
[366762600,1750437032380,-1073.90425003,0.000259,2]
[366762605,1750437032419,-704.1835659,0.000259,2]
[366762607,1750437032431,-310.31,0.000259,2]
[366762614,1750437032488,-9909.05678589,0.000259,2]
[366762616,1750437032504,-3118.92,0.000259,2]
[366762619,1750437032517,-1184.26931412,0.00025999,2]
[366762622,1750437032536,-9790.74736678,0.00025999,2]
[366762627,1750437032574,-800.0,0.00025999,2]
[366762630,1750437032593,-4890.9833191,0.00025999,2]
[366762632,1750437032608,-682.4060255,0.00026,2]
[366762634,1750437032620,-153.97,0.00026027,2]
[366762637,1750437032635,-500.0,0.00026103,2]
[366762640,1750437032650,-500.0,0.00026103,2]
[366762642,1750437032666,-500.0,0.00026103,2]
[366762645,1750437032681,-500.0,0.00026103,2]
[366762647,1750437032697,-500.0,0.00026103,2]
[366762650,1750437032712,-500.0,0.00026103,2]
[366762652,1750437032726,-1680.0,0.00026145,2]
[366762655,1750437032742,-766.875914,0.00026263,8]
[366762658,1750437032757,-1358.7261145,0.00026348,14]
[366762660,1750437032772,-304.0,0.00026384,2]
[366762663,1750437032787,-834.11677829,0.0002639,2]
[366762665,1750437032802,-166.48,0.00026423,2]
[366762668,1750437032818,-188.5163345,0.00026432,2]
[366762670,1750437032834,-692.46717967,0.00026559,2]
[366762673,1750437032852,-685.69164039,0.00026559,2]
[366762756,1750437037531,-538.7,0.00025383,2]
[366762759,1750437038400,-1424.74881864,0.00025383,2]
[366762760,1750437038413,-1757.83717279,0.00025383,2]
[366762761,1750437038426,-1202.1429303,0.00025383,2]
[366762762,1750437038438,-585.93094147,0.00025383,2]
[366762766,1750437039662,-404.16,0.00025383,2]
[366762767,1750437039770,-1203.4801368,0.00025383,2]
[366762768,1750437039781,-202.77671876,0.00026495,2]
[366762769,1750437039791,-625.84117994,0.00026559,2]
[366762770,1750437039800,-559.0,0.00026559,2]
[366762771,1750437039810,-591.0,0.00026559,2]
[366762772,1750437039820,-1278.0,0.00026559,2]
[366762773,1750437039829,-928.0,0.00026559,2]
[366762774,1750437039839,-1675.0,0.00026559,2]
[366762775,1750437039849,-1161.0,0.00026559,2]
[366762776,1750437039858,-3711.0331,0.00026583,2]
[366762777,1750437039868,-8098.86,0.00026591,2]
[366762778,1750437039878,-9999.99,0.00026591,2]
[366762779,1750437039887,-1514.97,0.00026591,2]
[366762780,1750437039897,-850.31,0.00026591,5]
[366762781,1750437039907,-766.08,0.00026591,2]
[366762782,1750437039916,-150.99,0.00026591,2]
[366762783,1750437039926,-150.99,0.00026591,2]
[366762784,1750437039935,-5000.0,0.00026595,2]
[366762785,1750437039946,-3879.88917858,0.00026595,2]
[366762786,1750437039956,-271.01754632,0.00026595,2]
[366762787,1750437039966,-160.40194533,0.00026595,2]
[366762788,1750437039975,-162.61276087,0.00026598,2]
[366762789,1750437039985,-800.0,0.000266,9]
[366762790,1750437039994,-592.3707,0.00026605,2]
[366762791,1750437040004,-420.0,0.00026609,2]
[366762792,1750437040014,-500.0,0.00026673,2]
[366762793,1750437040024,-500.0,0.00026673,2]
[366762794,1750437040033,-500.0,0.00026673,2]
[366762795,1750437040043,-299.75928,0.00026673,2]
[366762796,1750437040053,-346.06,0.00026684,2]
[366762797,1750437040062,-12983.18210139,0.00026684,2]
[366762798,1750437040072,-346.06,0.00026685,2]
[366762799,1750437040081,-346.06,0.00026685,2]
[366762800,1750437040091,-346.06,0.00026685,2]
[366762801,1750437040101,-346.06,0.00026685,2]
[366762802,1750437040110,-3688.433986,0.00026685,2]
[366762803,1750437040120,-150.58,0.00026685,2]
[366762804,1750437040130,-490.0,0.00026693,4]
[366762805,1750437040141,-721.46,0.00026693,4]
[366762806,1750437040151,-490.0,0.00026693,4]
[366762807,1750437040161,-490.0,0.00026693,4]
[366762808,1750437040171,-490.0,0.00026693,4]
[366762809,1750437040180,-490.0,0.00026693,4]
[366762810,1750437040190,-1358.62,0.00026693,4]
[366762811,1750437040200,-490.0,0.00026693,4]
[366762812,1750437040210,-1531.85,0.00026693,4]
[366762814,1750437040220,-490.0,0.00026693,4]
[366762815,1750437040230,-490.0,0.00026693,4]
[366762818,1750437040240,-490.0,0.00026693,4]
[366762820,1750437040249,-490.0,0.00026693,2]
[366762822,1750437040259,-490.0,0.00026693,4]
[366762825,1750437040269,-490.0,0.00026693,4]
[366762826,1750437040278,-490.0,0.00026693,4]
[366762827,1750437040288,-490.0,0.00026693,4]
[366762828,1750437040297,-490.0,0.00026693,4]
[366762829,1750437040307,-490.0,0.00026693,4]
[366762830,1750437040316,-490.0,0.00026693,4]
[366762831,1750437040326,-349.01486197,0.00026693,2]
[366762833,1750437040335,-490.0,0.00026693,4]
[366762834,1750437040345,-490.0,0.00026693,4]
[366762835,1750437040355,-490.0,0.00026693,2]
[366762836,1750437040368,-490.0,0.00026693,4]
[366762837,1750437040377,-582.39,0.00026693,4]
[366762838,1750437040386,-490.0,0.00026693,4]
[366762839,1750437040397,-490.0,0.00026693,4]
[366762840,1750437040408,-490.0,0.00026693,4]
[366762841,1750437040421,-500.0,0.00026693,2]
[366762842,1750437040431,-500.0,0.00026693,2]
[366762843,1750437040442,-500.0,0.00026693,2]
[366762844,1750437040452,-500.0,0.00026693,2]
[366762845,1750437040462,-500.0,0.00026693,2]
[366762846,1750437040472,-500.0,0.00026693,2]
[366762847,1750437040482,-500.0,0.00026693,2]
[366762848,1750437040492,-500.0,0.00026693,2]
[366762849,1750437040501,-500.0,0.00026693,2]
[366762850,1750437040511,-403.90498326,0.00026693,2]
[366762851,1750437040520,-500.0,0.00026693,2]
[366762852,1750437040531,-500.0,0.00026693,2]
[366762853,1750437040540,-500.0,0.00026693,2]
[366762854,1750437040550,-588.6339,0.00026693,2]
[366762855,1750437040560,-500.0,0.00026693,2]
[366762856,1750437040570,-500.0,0.00026693,2]
[366762857,1750437040579,-500.0,0.00026693,2]
[366762858,1750437040589,-500.0,0.00026693,2]
[366762859,1750437040600,-500.0,0.00026693,2]
[366762860,1750437040610,-490.0,0.00026694,4]
[366762861,1750437040620,-477.174217,0.00026694,4]
[366762862,1750437040630,-1233.88424,0.00026694,4]
[366762863,1750437040639,-200.10967613,0.00026694,4]
[366762864,1750437040653,-289.89032387,0.00026694,4]
[366762865,1750437040663,-404.21949141,0.00026694,4]
[366762866,1750437040675,-85.78050859,0.00026694,4]
[366762867,1750437040684,-490.0,0.00026694,4]
[366762868,1750437040694,-490.0,0.00026694,4]
[366762869,1750437040704,-1485.95398524,0.00026694,4]
[366762870,1750437040742,-505.1,0.00026693,4]
[366762872,1750437040752,-75.81601476,0.00026694,4]
[366762874,1750437040762,-490.0,0.00026694,4]
[366762875,1750437040772,-490.0,0.00026694,4]
[366762876,1750437040781,-3.71786424,0.00026694,4]
[366762877,1750437040794,-511.58849586,0.00026694,4]
[366762878,1750437040803,-1198.53650418,0.00026694,4]
[366762879,1750437040815,-147.45349582,0.00026694,4]
[366762880,1750437040825,-252.62133801,0.00026694,4]
[366762892,1750437045751,-202.77671876,0.00026543,2]
[366762893,1750437045763,-202.77671876,0.00026592,2]
[366762894,1750437045774,-4396.61356038,0.00026595,2]
[366762895,1750437045790,-186.70160676,0.00026595,2]
[366762896,1750437045801,-2749.79099686,0.00026669,2]
[366762897,1750437045857,-1344.20900314,0.00026669,2]
[366762898,1750437045868,-490.0,0.00026693,4]
[366762899,1750437045878,-490.0,0.00026693,4]
[366762900,1750437045889,-400.07483383,0.00026693,4]
[366762901,1750437045900,-490.0,0.00026693,4]
[366762902,1750437045911,-254.79866199,0.00026694,4]
[366762903,1750437045922,-490.0,0.00026694,4]
[366762904,1750437045933,-544.2,0.00026694,4]
[366762905,1750437045948,-490.0,0.00026694,4]
[366762906,1750437045959,-247.57750104,0.00026694,4]
[366762907,1750437045989,-242.42249896,0.00026694,4]
[366762908,1750437046001,-188.77750104,0.00026694,4]
[366762909,1750437046023,-454.60249896,0.00026694,4]
[366762910,1750437046035,-169.42589431,0.00026694,4]
[366762911,1750437046079,-320.57410569,0.00026694,4]
[366762912,1750437046090,-490.0,0.00026694,4]
[366762913,1750437046107,-347.42587431,0.00026694,4]
[366762914,1750437046120,-142.57412569,0.00026694,4]
[366762915,1750437046131,-490.0,0.00026694,4]
[366762917,1750437046141,-190.22208713,0.00026694,4]
[366762919,1750437046153,-703.41791287,0.00026694,4]
[366762921,1750437046164,-839.15,0.00026694,4]
[366762923,1750437046175,-490.0,0.00026694,4]
[366762926,1750437046186,-490.0,0.00026694,4]
[366762928,1750437046197,-800.81,0.00026694,4]
[366762930,1750437046208,-866.25,0.00026694,4]
[366762932,1750437046218,-490.0,0.00026694,4]
[366762934,1750437046228,-490.0,0.00026694,4]
[366762936,1750437046239,-470.71265267,0.00026694,4]
[366762962,1750437281636,202.0,0.00022552,2]
[366762964,1750437375750,150.0,0.00023102,2]
[366762966,1750437400950,602.30516516,0.00023101,2]
[366762968,1750437441956,15000.0,0.000231,2]
[366762993,1750437721178,187.84,0.00022855,2]
[366762997,1750437843119,8400.83210111,0.00023102,2]
[366763000,1750438001765,202.0,0.00022424,2]
[366763002,1750438074303,156.88,0.00013699,2]
[366763004,1750438161131,-151.0,0.00023424,2]
[366763005,1750438161153,-164.44591854,0.00023424,2]
[366763006,1750438181574,140.25473859,0.00022424,2]
[366763007,1750438181601,62.74526141,0.00022424,2]
[366763016,1750438231787,-956.91278012,0.00024385,2]
[366763017,1750438231800,-9006.44183568,0.00024385,2]
[366763018,1750438231810,-202.0,0.00024402,5]
[366763019,1750438231820,-250.0,0.00024464,2]
[366763020,1750438231829,-300.0,0.00024626,2]
[366763021,1750438231840,-600.0,0.00024827,4]
[366763022,1750438231849,-1427.91,0.00025314,2]
[366763023,1750438231859,-2329.96,0.00025314,2]
[366763024,1750438231869,-1000.0,0.00025385,2]
[366763025,1750438231879,-2652.78,0.00025471,2]
[366763026,1750438231888,-336.2,0.000255,2]
[366763027,1750438231898,-300.0,0.00025512,2]
[366763028,1750438231908,-495.2,0.00025574,120]
[366763029,1750438231918,-600.0,0.0002574,2]
[366763030,1750438231927,-720.0,0.0002574,2]
[366763031,1750438231937,-574.0,0.0002574,2]
[366763032,1750438231946,-1200.0,0.0002574,2]
[366763033,1750438231956,-300.0,0.0002574,2]
[366763034,1750438231966,-797.92,0.00025741,2]
[366763035,1750438231975,-461.86,0.00025741,2]
[366763036,1750438231984,-461.86,0.00025741,2]
[366763037,1750438231994,-797.92,0.00025741,2]
[366763038,1750438232003,-461.86,0.00025741,2]
[366763039,1750438232015,-797.92,0.00025741,2]
[366763040,1750438232025,-150.0,0.0002575,2]
[366763041,1750438232035,-797.92,0.00025841,2]
[366763042,1750438232044,-516.93,0.00025841,2]
[366763043,1750438232054,-1221.14311475,0.000259,14]
[366763044,1750438232064,-600.0,0.00025907,4]
[366763045,1750438232073,-1744.4,0.00026,2]
[366763046,1750438232083,-1744.4,0.00026,2]
[366763047,1750438232093,-1744.4,0.00026,2]
[366763048,1750438232103,-834.11677829,0.00026082,2]
[366763050,1750438232113,-300.0,0.00026101,2]
[366763052,1750438232122,-500.0,0.00026102,2]
[366763054,1750438232133,-500.0,0.00026102,2]
[366763056,1750438232143,-753.163015,0.00026174,8]
[366763058,1750438232152,-187.84,0.00026279,2]
[366763060,1750438232162,-1000.0,0.000263,2]
[366763062,1750438232171,-1595.42,0.000263,2]
[366763064,1750438232181,-1221.14311471,0.00026348,14]
[366763066,1750438232190,-202.0,0.0002638,8]
[366763068,1750438232200,-172.36021106,0.000264,2]
[366763070,1750438232210,-5017.41516614,0.000264,2]
[366763072,1750438232219,-560.29864581,0.000264,10]
[366763074,1750438232228,-160.40194533,0.000264,2]
[366763075,1750438232238,-3945.85758,0.0002643,2]
[366763077,1750438232247,-3945.85758,0.0002643,2]
[366763079,1750438232256,-3945.85759,0.0002643,2]
[366763080,1750438232265,-1957.856,0.00026434,2]
[366763081,1750438232275,-207.4,0.00026434,2]
[366763083,1750438232285,-172.36021094,0.00026439,2]
[366763084,1750438232294,-3954.30883927,0.00026444,2]
[366763085,1750438232304,-500.0,0.00026473,2]
[366763086,1750438232538,-500.0,0.00026473,2]
[366763087,1750438232548,-172.36021094,0.00026478,2]
[366763088,1750438232558,-2030.296672,0.00026489,2]
[366763089,1750438232568,-431.89,0.0002649,3]
[366763090,1750438232578,-150.55,0.0002649,2]
[366763091,1750438232587,-150.55,0.0002649,2]
[366763092,1750438232597,-490.0,0.00026499,4]
[366763093,1750438232607,-490.0,0.00026499,4]
[366763094,1750438232616,-490.0,0.00026499,4]
[366763095,1750438232626,-250.0,0.00026499,4]
[366763096,1750438232638,-490.0,0.00026499,4]
[366763097,1750438232647,-490.0,0.00026499,4]
[366763098,1750438232657,-490.0,0.00026499,4]
[366763099,1750438232666,-490.0,0.00026499,4]
[366763100,1750438232676,-490.0,0.00026499,4]
[366763101,1750438232685,-490.0,0.00026499,4]
[366763102,1750438232694,-490.0,0.00026499,4]
[366763103,1750438232704,-488.16840237,0.00026499,4]
[366763104,1750438232714,-490.0,0.00026499,4]
[366763105,1750438232724,-490.0,0.00026499,4]
[366763106,1750438232734,-490.0,0.00026499,4]
[366763107,1750438232745,-490.0,0.00026499,4]
[366763108,1750438232755,-490.0,0.00026499,4]
[366763109,1750438232765,-12267.441252,0.00026499,4]
[366763110,1750438232775,-490.0,0.00026499,4]
[366763111,1750438232784,-2337.62,0.00026499,4]
[366763112,1750438232794,-490.0,0.00026499,4]
[366763113,1750438232804,-160.819029,0.00026499,4]
[366763114,1750438232814,-490.0,0.00026499,4]
[366763115,1750438232824,-490.0,0.00026499,4]
[366763116,1750438232834,-490.0,0.00026499,4]
[366763117,1750438232844,-490.0,0.00026499,4]
[366763118,1750438232853,-518.21,0.00026499,4]
[366763119,1750438232864,-490.0,0.00026499,4]
[366763120,1750438232874,-1439.11152,0.00026499,4]
[366763121,1750438232886,-490.0,0.00026499,4]
[366763122,1750438232896,-490.0,0.00026499,4]
[366763123,1750438232906,-500.62033417,0.00026499,4]
[366763124,1750438232916,-490.0,0.00026499,4]
[366763125,1750438232926,-355.11886469,0.00026499,4]
[366763126,1750438232935,-490.0,0.00026499,4]
[366763127,1750438232945,-490.0,0.00026499,4]
[366763128,1750438232959,-105.51248551,0.00026499,4]
[366763129,1750438232975,-384.48751449,0.00026499,4]
[366763130,1750438232985,-10048.76868551,0.00026499,4]
[366763131,1750438232997,-1064.30395249,0.00026499,4]
[366763132,1750438233008,-490.0,0.00026499,4]
[366763133,1750438233023,-490.0,0.00026499,4]
[366763134,1750438233033,-506.83155668,0.00026499,4]
[366763135,1750438233043,-490.0,0.00026499,4]
[366763136,1750438233054,-490.0,0.00026499,4]
[366763137,1750438233065,-2110.35,0.00026499,4]
[366763138,1750438233075,-490.0,0.00026499,4]
[366763139,1750438233085,-490.0,0.00026499,4]
[366763140,1750438233097,-490.0,0.00026499,4]
[366763141,1750438233107,-490.0,0.00026499,4]
[366763142,1750438233117,-506.28705647,0.00026499,4]
[366763143,1750438233128,-490.0,0.00026499,4]
[366763144,1750438233138,-1348.32,0.00026499,4]
[366763145,1750438233148,-490.0,0.00026499,4]
[366763146,1750438233158,-490.0,0.00026499,4]
[366763147,1750438233169,-490.0,0.00026499,4]
[366763148,1750438233179,-508.34,0.00026499,4]
[366763150,1750438233189,-490.0,0.00026499,4]
[366763151,1750438233200,-490.0,0.00026499,4]
[366763152,1750438233210,-571.55,0.00026499,4]
[366763153,1750438233220,-271.6174394,0.00026499,4]
[366763154,1750438233230,-470.76982565,0.00026499,4]
[366763155,1750438233241,-503.88800191,0.00026499,4]
[366763156,1750438233251,-490.0,0.00026499,4]
[366763157,1750438233261,-490.0,0.00026499,4]
[366763158,1750438233271,-546.22,0.00026499,4]
[366763159,1750438233281,-490.0,0.00026499,4]
[366763160,1750438233291,-490.0,0.00026499,4]
[366763161,1750438233302,-490.0,0.00026499,4]
[366763162,1750438233313,-490.0,0.00026499,4]
[366763163,1750438233324,-616.57,0.00026499,4]
[366763164,1750438233334,-490.0,0.00026499,4]
[366763165,1750438233343,-490.0,0.00026499,4]
[366763166,1750438233353,-724.13,0.00026499,4]
[366763167,1750438233364,-490.0,0.00026499,4]
[366763168,1750438233374,-490.0,0.00026499,4]
[366763169,1750438233387,-490.0,0.00026499,4]
[366763170,1750438233397,-490.0,0.00026499,4]
[366763171,1750438233407,-896.94,0.00026499,4]
[366763172,1750438233429,-490.0,0.00026499,4]
[366763173,1750438233442,-490.0,0.00026499,4]
[366763174,1750438233662,-490.0,0.00026499,4]
[366763175,1750438233672,-490.0,0.00026499,4]
[366763176,1750438233683,-802.26,0.00026499,4]
[366763177,1750438233694,-490.0,0.00026499,4]
[366763178,1750438233705,-490.0,0.00026499,4]
[366763179,1750438233716,-500.0,0.00026499,4]
[366763180,1750438233727,-457.62,0.00026499,4]
[366763181,1750438233737,-490.0,0.00026499,4]
[366763182,1750438233748,-867.82,0.00026499,4]
[366763183,1750438233759,-490.0,0.00026499,4]
[366763184,1750438233784,-490.0,0.00026499,4]
[366763185,1750438233795,-490.0,0.00026499,4]
[366763186,1750438233807,-537.77,0.00026499,4]
[366763187,1750438233817,-490.0,0.00026499,4]
[366763188,1750438233827,-2417.37,0.00026499,4]
[366763189,1750438233838,-509.73710664,0.00026499,4]
[366763190,1750438233848,-490.0,0.00026499,4]
[366763191,1750438233859,-1011.1,0.00026499,4]
[366763192,1750438233870,-560.08798196,0.00026499,4]
[366763193,1750438233882,-1363.65,0.00026499,4]
[366763194,1750438233893,-490.0,0.00026499,4]
[366763195,1750438233904,-490.0,0.00026499,4]
[366763196,1750438233915,-263.62642204,0.00026499,4]
[366763197,1750438233925,-863.79,0.00026499,4]
[366763198,1750438233936,-387.62875057,0.00026499,4]
[366763199,1750438233946,-490.0,0.00026499,4]
[366763200,1750438233958,-501.27457911,0.00026499,4]
[366763201,1750438233969,-490.0,0.00026499,4]
[366763202,1750438233979,-490.0,0.00026499,4]
[366763203,1750438233990,-582.96,0.00026499,4]
[366763204,1750438234001,-725.84,0.00026499,4]
[366763205,1750438234015,-1850.14,0.00026499,4]
[366763206,1750438234025,-490.0,0.00026499,4]
[366763207,1750438234036,-490.0,0.00026499,4]
[366763208,1750438234046,-1468.03,0.00026499,4]
[366763209,1750438234058,-490.0,0.00026499,4]
[366763210,1750438234068,-490.0,0.00026499,4]
[366763211,1750438234083,-729.03,0.00026499,4]
[366763212,1750438234095,-490.0,0.00026499,4]
[366763213,1750438234105,-736.41,0.00026499,4]
[366763214,1750438234116,-490.0,0.00026499,4]
[366763215,1750438234127,-490.0,0.00026499,4]
[366763216,1750438234138,-490.0,0.00026499,4]
[366763217,1750438234148,-490.0,0.00026499,4]
[366763218,1750438234158,-490.0,0.00026499,4]
[366763219,1750438234170,-490.0,0.00026499,4]
[366763220,1750438234180,-490.0,0.00026499,2]
[366763221,1750438234190,-490.0,0.00026499,4]
[366763222,1750438234201,-490.0,0.00026499,4]
[366763223,1750438234212,-490.0,0.00026499,4]
[366763224,1750438234223,-490.0,0.00026499,4]
[366763225,1750438234233,-490.0,0.00026499,4]
[366763226,1750438234244,-514.34,0.00026499,4]
[366763227,1750438234254,-490.0,0.00026499,4]
[366763228,1750438234265,-490.0,0.00026499,4]
[366763229,1750438234275,-669.21,0.00026499,4]
[366763230,1750438234286,-514.36,0.00026499,4]
[366763231,1750438234297,-490.0,0.00026499,2]
[366763232,1750438234308,-313.56710646,0.00026499,4]
[366763233,1750438234318,-490.0,0.00026499,4]
[366763234,1750438234329,-490.0,0.00026499,4]
[366763235,1750438234340,-490.0,0.00026499,4]
[366763236,1750438234351,-490.0,0.00026499,4]
[366763237,1750438234362,-490.0,0.00026499,4]
[366763238,1750438234373,-490.0,0.00026499,2]
[366763239,1750438234396,-1282.19,0.00026499,4]
[366763240,1750438234418,-490.0,0.00026499,4]
[366763241,1750438234438,-490.0,0.00026499,4]
[366763242,1750438234452,-3197.44544634,0.00026499,5]
[366763243,1750438234471,-109459.7861306,0.000265,5]
[366763244,1750438234521,-653.51,0.000265,5]
[366763245,1750438234646,-1911.50650376,0.000265,5]
[366763246,1750438234666,-1353.97795263,0.000265,5]
[366763247,1750438234685,-887.77654459,0.000265,5]
[366763248,1750438234705,-264.94468,0.000265,5]
[366763249,1750438234724,-689.00910779,0.000265,5]
[366763250,1750438234743,-795.78457114,0.000265,5]
[366763251,1750438234761,-25241.90741921,0.000265,5]
[366763252,1750438234907,-476.66062401,0.000265,5]
[366763253,1750438234929,-11797.30719999,0.000265,5]
[366763254,1750438234960,-409.24028845,0.000265,5]
[366763258,1750438237706,-763.181382,0.00026174,8]
[366763259,1750438237716,-500.0,0.00026499,2]
[366763260,1750438237726,-500.0,0.00026499,2]
[366763261,1750438237736,-194.8217101,0.00026499,2]
[366763262,1750438237812,-305.1782899,0.00026499,2]
[366763263,1750438237822,-500.0,0.00026499,2]
[366763264,1750438237832,-500.0,0.00026499,2]